[Event "FIDE Women World Blitz 2021"]
[Site "Warsaw"]
[Date "2021.12.30"]
[Round "13.22"]
[White "Lach, Aleksandra"]
[Black "Majdan, Joanna"]
[Result "1-0"]
[ECO "B30"]
[WhiteElo "2204"]
[BlackElo "2325"]
[Annotator "NA"]
[PlyCount "135"]
[EventDate "2021.12.29"]
[EventType "swiss"]
[EventCountry "POL"]
[Tiebreak "Cut1 Buchholz"]
[SourceTitle "playchess.com"]
[Source "ChessBase"]
[SourceQuality "1"]
[TimeControl "180+2"]

1. e4 {[%emt 0:00:02]} c5 {[%emt 0:00:01]} 2. Nc3 {[%emt 0:00:01]} Nc6 {
[%emt 0:00:01]} 3. Bb5 {[%emt 0:00:01]} Nd4 {[%emt 0:00:01]} 4. Nf3 {[%emt 0:
00:01]} e6 {[%emt 0:00:04]} 5. O-O {[%emt 0:00:23]} a6 {[%emt 0:00:03]} 6. Bd3
{[%emt 0:00:01]} Ne7 {[%emt 0:00:02]} 7. Nxd4 {[%emt 0:00:07]} cxd4 {[%emt 0:
00:01]} 8. Ne2 {[%emt 0:00:01]} Nc6 {[%emt 0:00:03]} 9. c3 {[%emt 0:00:08]} Ne5
{[%emt 0:00:10]} 10. Bb1 {[%emt 0:00:20]} dxc3 {[%emt 0:00:14]} 11. dxc3 {
[%emt 0:00:11]} Bc5 {[%emt 0:00:06]} 12. Bf4 {[%emt 0:00:14]} d6 {[%emt 0:00:
10]} 13. b4 {[%emt 0:00:17]} Bb6 {[%emt 0:00:03]} 14. Qb3 {[%emt 0:00:18]} O-O
{[%emt 0:00:03]} 15. c4 {[%emt 0:00:12]} Ng6 {[%emt 0:00:11]} 16. Bg3 {[%emt 0:
00:02]} e5 {[%emt 0:00:01]} 17. Bc2 {[%emt 0:00:10]} Be6 {[%emt 0:00:02]} 18.
Qd3 {[%emt 0:00:01]} Qe7 {[%emt 0:00:11]} 19. Rad1 {[%emt 0:00:02]} Rfd8 {
[%emt 0:00:04]} 20. Bb3 {[%emt 0:00:01]} h5 {[%emt 0:00:03]} 21. h3 {[%emt 0:
00:05]} h4 {[%emt 0:00:02]} 22. Bh2 {[%emt 0:00:00]} Rac8 {[%emt 0:00:05]} 23.
Kh1 {[%emt 0:00:01]} Qg5 {[%emt 0:00:07]} 24. f4 {[%emt 0:00:04]} exf4 {
[%emt 0:00:02]} 25. Bxf4 {[%emt 0:00:04]} Nxf4 {[%emt 0:00:06]} 26. Nxf4 {
[%emt 0:00:01]} Qe5 {[%emt 0:00:10]} 27. Nd5 {[%emt 0:00:11]} Bxd5 {[%emt 0:00:
10]} 28. exd5 {[%emt 0:00:00]} Re8 {[%emt 0:00:04]} 29. Qf3 {[%emt 0:00:02]}
Re7 {[%emt 0:00:07]} 30. Qg4 {[%emt 0:00:00]} Rce8 {[%emt 0:00:07]} 31. Qxh4 {
[%emt 0:00:03]} Qc3 {[%emt 0:00:09]} 32. Qf4 {[%emt 0:00:10]} Qxb4 {[%emt 0:00:
05]} 33. Bc2 {[%emt 0:00:02]} Qc3 {[%emt 0:00:13]} 34. Bb1 {[%emt 0:00:03]} g6
{[%emt 0:00:12]} 35. Qg4 {[%emt 0:00:05]} Kg7 {[%emt 0:00:03]} 36. Qf4 {
[%emt 0:00:04]} Bc5 {[%emt 0:00:03]} 37. Rd3 {[%emt 0:00:07]} Qe5 {[%emt 0:00:
01]} 38. Rdf3 {[%emt 0:00:05]} Qxf4 {[%emt 0:00:02]} 39. Rxf4 {[%emt 0:00:00]}
Be3 {[%emt 0:00:02]} 40. R4f3 {[%emt 0:00:01]} Bc5 {[%emt 0:00:01]} 41. Kh2 {
[%emt 0:00:06]} Bd4 {[%emt 0:00:04]} 42. h4 {[%emt 0:00:08]} Rh8 {[%emt 0:00:
06]} 43. Kh3 {[%emt 0:00:03]} f5 {[%emt 0:00:03]} 44. Rg3 {[%emt 0:00:04]} Kf6
{[%emt 0:00:03]} 45. Rd3 {[%emt 0:00:05]} Be5 {[%emt 0:00:04]} 46. g4 {[%emt 0:
00:01]} f4 {[%emt 0:00:05]} 47. g5+ {[%emt 0:00:00]} Kg7 {[%emt 0:00:02]} 48.
Kg4 {[%emt 0:00:03]} Rc8 {[%emt 0:00:08]} 49. Rc1 {[%emt 0:00:03]} b5 {[%emt 0:
00:01]} 50. c5 {[%emt 0:00:02]} Rxc5 {[%emt 0:00:04]} 51. Rxc5 {[%emt 0:00:01]}
dxc5 {[%emt 0:00:01]} 52. Ra3 {[%emt 0:00:04]} Ra7 {[%emt 0:00:09]} 53. h5 {
[%emt 0:00:04]} gxh5+ {[%emt 0:00:01]} 54. Kxh5 {[%emt 0:00:01]} b4 {[%emt 0:
00:01]} 55. Ra5 {[%emt 0:00:02]} Bd6 {[%emt 0:00:01]} 56. Bd3 {[%emt 0:00:01]}
f3 {[%emt 0:00:02]} 57. Rxa6 {[%emt 0:00:06]} Rxa6 {[%emt 0:00:04]} 58. Bxa6 {
[%emt 0:00:00]} f2 {[%emt 0:00:01]} 59. Kg4 {[%emt 0:00:01]} Kg6 {[%emt 0:00:
13]} 60. Bd3+ {[%emt 0:00:01]} Kg7 {[%emt 0:00:01]} 61. Kf3 {[%emt 0:00:01]}
f1=Q+ {[%emt 0:00:05]} 62. Bxf1 {[%emt 0:00:01]} Kg6 {[%emt 0:00:03]} 63. Kg4
Be5 {[%emt 0:00:02]} 64. Bd3+ {[%emt 0:00:01]} Kf7 {[%emt 0:00:01]} 65. Kf5 {
[%emt 0:00:01]} Bd4 {[%emt 0:00:00]} 66. d6 {[%emt 0:00:07]} Be3 {[%emt 0:00:
04]} 67. g6+ {[%emt 0:00:00]} Kg7 {[%emt 0:00:04]} 68. Ke6 {[%emt 0:00:11]} 1-0

[Event "FIDE Women World Blitz 2021"]
[Site "Warsaw"]
[Date "2021.12.30"]
[Round "13.23"]
[White "Mamedjarova, Turkan"]
[Black "Hryzlova, Sofiia"]
[Result "1-0"]
[ECO "E52"]
[WhiteElo "2264"]
[BlackElo "2097"]
[Annotator "NA"]
[PlyCount "87"]
[EventDate "2021.12.29"]
[EventType "swiss"]
[EventCountry "POL"]
[Tiebreak "Cut1 Buchholz"]
[SourceTitle "playchess.com"]
[Source "ChessBase"]
[SourceQuality "1"]
[TimeControl "180+2"]

1. d4 {[%emt 0:00:01]} Nf6 {[%emt 0:00:01]} 2. c4 {[%emt 0:00:01]} e6 {[%emt 0:
00:01]} 3. Nc3 {[%emt 0:00:01]} Bb4 {[%emt 0:00:01]} 4. Bd2 {[%emt 0:00:04]}
O-O {[%emt 0:00:03]} 5. Nf3 {[%emt 0:00:01]} d5 {[%emt 0:00:03]} 6. e3 {
[%emt 0:00:01]} b6 {[%emt 0:00:02]} 7. Bd3 {[%emt 0:00:01]} dxc4 {[%emt 0:00:
02]} 8. Bxc4 {[%emt 0:00:02]} Bb7 {[%emt 0:00:01]} 9. O-O {[%emt 0:00:02]} Nbd7
{[%emt 0:00:07]} 10. Rc1 {[%emt 0:00:18]} a6 {[%emt 0:00:02]} 11. a3 {[%emt 0:
00:03]} Bd6 {[%emt 0:00:03]} 12. h3 {[%emt 0:00:04]} Qe7 {[%emt 0:00:03]} 13.
Qe2 {[%emt 0:00:08]} e5 {[%emt 0:00:08]} 14. dxe5 {[%emt 0:00:06]} Nxe5 {
[%emt 0:00:02]} 15. Nxe5 {[%emt 0:00:05]} Qxe5 {[%emt 0:00:02]} 16. f4 {
[%emt 0:00:01]} Qe7 {[%emt 0:00:06]} 17. Qf2 {[%emt 0:00:25]} Rfe8 {[%emt 0:00:
11]} 18. Qg3 {[%emt 0:00:04]} Bc5 {[%emt 0:00:13]} 19. Rce1 {[%emt 0:00:04]}
Rad8 {[%emt 0:00:03]} 20. Bc1 {[%emt 0:00:01]} b5 {[%emt 0:00:08]} 21. Ba2 {
[%emt 0:00:11]} Bb6 {[%emt 0:00:42]} 22. Kh2 {[%emt 0:00:08]} b4 {[%emt 0:00:
16]} 23. axb4 {[%emt 0:00:03]} Qxb4 {[%emt 0:00:02]} 24. Bb1 {[%emt 0:00:05]}
Be4 {[%emt 0:00:16]} 25. Ba2 {[%emt 0:00:15]} Rd3 {[%emt 0:00:09]} 26. Qh4 {
[%emt 0:00:12]} Qa5 {[%emt 0:00:32]} 27. Bc4 {[%emt 0:00:14]} Rd7 {[%emt 0:00:
12]} 28. Rd1 {[%emt 0:00:03]} Rde7 {[%emt 0:00:01]} 29. Nxe4 {[%emt 0:00:13]}
Rxe4 {[%emt 0:00:03]} 30. Bd2 {[%emt 0:00:08]} Qc5 {[%emt 0:00:02]} 31. Bd3 {
[%emt 0:00:04]} R4e7 {[%emt 0:00:02]} 32. Bc3 {[%emt 0:00:03]} Ne4 {[%emt 0:00:
04]} 33. Bxe4 {[%emt 0:00:04]} Rxe4 {[%emt 0:00:02]} 34. Qg4 {[%emt 0:00:02]}
g6 {[%emt 0:00:04]} 35. Qh4 {[%emt 0:00:12]} R4e6 {[%emt 0:00:08]} 36. Rd8 {
[%emt 0:00:08]} Qf8 {[%emt 0:00:09]} 37. Rfd1 {[%emt 0:00:05]} Bxe3 {[%emt 0:
00:02]} 38. Rxe8 {[%emt 0:00:03]} Qxe8 {[%emt 0:00:05]} 39. Rd8 {[%emt 0:00:05]
} Bxf4+ {[%emt 0:00:01]} 40. Kh1 {[%emt 0:00:01]} g5 {[%emt 0:00:04]} 41. Rxe8+
{[%emt 0:00:03]} Rxe8 {[%emt 0:00:01]} 42. Qh6 {[%emt 0:00:03]} f6 {[%emt 0:00:
02]} 43. Qxf6 {[%emt 0:00:02]} Re2 {[%emt 0:00:03]} 44. Qg7# {[%emt 0:00:01]}
1-0

[Event "FIDE Women World Blitz 2021"]
[Site "Warsaw"]
[Date "2021.12.30"]
[Round "13.24"]
[White "Bulmaga, Irina"]
[Black "Zhukova, Natalia"]
[Result "1/2-1/2"]
[ECO "C45"]
[WhiteElo "2405"]
[BlackElo "2331"]
[Annotator "NA"]
[PlyCount "119"]
[EventDate "2021.12.29"]
[EventType "swiss"]
[EventCountry "POL"]
[Tiebreak "Cut1 Buchholz"]
[SourceTitle "playchess.com"]
[Source "ChessBase"]
[SourceQuality "1"]
[TimeControl "180+2"]

1. e4 {[%emt 0:00:01]} e5 {[%emt 0:00:01]} 2. Nf3 {[%emt 0:00:02]} Nc6 {
[%emt 0:00:01]} 3. d4 {[%emt 0:00:02]} exd4 {[%emt 0:00:02]} 4. Nxd4 {[%emt 0:
00:01]} Nf6 {[%emt 0:00:02]} 5. Nxc6 {[%emt 0:00:02]} bxc6 {[%emt 0:00:02]} 6.
e5 {[%emt 0:00:02]} Qe7 {[%emt 0:00:01]} 7. Qe2 {[%emt 0:00:01]} Nd5 {[%emt 0:
00:01]} 8. c4 {[%emt 0:00:02]} Nb6 {[%emt 0:00:02]} 9. Nc3 {[%emt 0:00:09]} Qe6
{[%emt 0:00:03]} 10. Qe4 {[%emt 0:00:02]} Bb4 {[%emt 0:00:15]} 11. Bd2 {
[%emt 0:00:05]} Bb7 {[%emt 0:00:27]} 12. a3 {[%emt 0:00:12]} Bxc3 {[%emt 0:00:
12]} 13. Bxc3 {[%emt 0:00:02]} d5 {[%emt 0:00:29]} 14. Qe3 {[%emt 0:00:18]}
dxc4 {[%emt 0:00:24]} 15. O-O-O {[%emt 0:00:11]} O-O {[%emt 0:00:11]} 16. f4 {
[%emt 0:00:03]} Rfd8 {[%emt 0:00:36]} 17. Be2 {[%emt 0:00:04]} Nd5 {[%emt 0:00:
19]} 18. Qd4 {[%emt 0:00:15]} Ba6 {[%emt 0:00:04]} 19. Bxc4 {[%emt 0:00:19]}
Bxc4 {[%emt 0:00:01]} 20. Qxc4 {[%emt 0:00:02]} Rab8 {[%emt 0:00:13]} 21. Qd4 {
[%emt 0:00:16]} h6 {[%emt 0:00:04]} 22. Rhe1 {[%emt 0:00:05]} Rb5 {[%emt 0:00:
03]} 23. Rd2 {[%emt 0:00:13]} Rdb8 {[%emt 0:00:01]} 24. Red1 {[%emt 0:00:11]}
Qe7 {[%emt 0:00:06]} 25. Rc2 {[%emt 0:00:31]} Rb3 {[%emt 0:00:01]} 26. g3 {
[%emt 0:00:18]} R8b5 {[%emt 0:00:01]} 27. h4 {[%emt 0:00:03]} Nxc3 {[%emt 0:00:
02]} 28. Qd8+ {[%emt 0:00:12]} Qxd8 {[%emt 0:00:01]} 29. Rxd8+ Kh7 30. Rxc3 {
[%emt 0:00:04]} Rxc3+ {[%emt 0:00:02]} 31. bxc3 {[%emt 0:00:01]} Kg6 {[%emt 0:
00:01]} 32. Kc2 {[%emt 0:00:04]} Rd5 {[%emt 0:00:05]} 33. Rc8 {[%emt 0:00:04]}
Rd7 {[%emt 0:00:02]} 34. Ra8 {[%emt 0:00:01]} Kf5 {[%emt 0:00:01]} 35. Rxa7 {
[%emt 0:00:03]} Kg4 {[%emt 0:00:01]} 36. Ra8 {[%emt 0:00:05]} Kxg3 {[%emt 0:00:
07]} 37. a4 {[%emt 0:00:01]} Kxf4 {[%emt 0:00:02]} 38. a5 {[%emt 0:00:01]} Rd5
{[%emt 0:00:02]} 39. c4 {[%emt 0:00:01]} Rxe5 {[%emt 0:00:02]} 40. Kc3 {
[%emt 0:00:02]} g5 {[%emt 0:00:02]} 41. hxg5 {[%emt 0:00:02]} hxg5 {[%emt 0:00:
01]} 42. Kb4 {[%emt 0:00:02]} f5 {[%emt 0:00:01]} 43. a6 {[%emt 0:00:01]} Re1 {
[%emt 0:00:01]} 44. Kc5 {[%emt 0:00:06]} g4 {[%emt 0:00:01]} 45. Kxc6 {[%emt 0:
00:02]} g3 {[%emt 0:00:01]} 46. Rg8 {[%emt 0:00:01]} Ra1 {[%emt 0:00:01]} 47.
Kb7 {[%emt 0:00:02]} Kf3 {[%emt 0:00:01]} 48. a7 {[%emt 0:00:01]} f4 {[%emt 0:
00:01]} 49. a8=Q {[%emt 0:00:08]} Rxa8 {[%emt 0:00:01]} 50. Kxa8 {[%emt 0:00:
02]} g2 {[%emt 0:00:04]} 51. c5 {[%emt 0:00:01]} Kf2 {[%emt 0:00:01]} 52. c6 {
[%emt 0:00:00]} g1=Q {[%emt 0:00:01]} 53. Rxg1 {[%emt 0:00:02]} Kxg1 {[%emt 0:
00:01]} 54. Kb7 {[%emt 0:00:01]} f3 {[%emt 0:00:00]} 55. Kxc7 {[%emt 0:00:02]}
f2 {[%emt 0:00:02]} 56. Kb7 {[%emt 0:00:01]} f1=Q {[%emt 0:00:01]} 57. c7 {
[%emt 0:00:01]} Qb5+ {[%emt 0:00:01]} 58. Ka8 {[%emt 0:00:02]} Qc6+ {[%emt 0:
00:01]} 59. Kb8 {[%emt 0:00:01]} Qb6+ {[%emt 0:00:01]} 60. Ka8 {[%emt 0:00:00]}
1/2-1/2

[Event "FIDE Women World Blitz 2021"]
[Site "Warsaw"]
[Date "2021.12.30"]
[Round "13.25"]
[White "Mammadova, Gulnar"]
[Black "Efimenko, Maria"]
[Result "0-1"]
[ECO "B06"]
[WhiteElo "2395"]
[BlackElo "2207"]
[Annotator "NA"]
[PlyCount "156"]
[EventDate "2021.12.29"]
[EventType "swiss"]
[EventCountry "POL"]
[Tiebreak "Cut1 Buchholz"]
[SourceTitle "playchess.com"]
[Source "ChessBase"]
[SourceQuality "1"]
[TimeControl "180+2"]

1. e4 {[%emt 0:00:01]} g6 {[%emt 0:00:00]} 2. d4 {[%emt 0:00:02]} d6 {[%emt 0:
00:01]} 3. Nc3 {[%emt 0:00:02]} Bg7 {[%emt 0:00:01]} 4. Be3 {[%emt 0:00:03]} a6
{[%emt 0:00:01]} 5. Qd2 {[%emt 0:00:03]} b5 {[%emt 0:00:01]} 6. f3 {[%emt 0:00:
02]} Bb7 {[%emt 0:00:01]} 7. h4 {[%emt 0:00:02]} h6 {[%emt 0:00:02]} 8. Nh3 {
[%emt 0:00:05]} Nd7 {[%emt 0:00:01]} 9. a4 {[%emt 0:00:09]} b4 {[%emt 0:00:01]}
10. Nd1 {[%emt 0:00:02]} c5 {[%emt 0:00:03]} 11. c3 {[%emt 0:00:01]} bxc3 {
[%emt 0:00:19]} 12. bxc3 {[%emt 0:00:01]} Ngf6 {[%emt 0:00:09]} 13. Nhf2 {
[%emt 0:00:04]} Nh5 {[%emt 0:00:28]} 14. Bd3 {[%emt 0:00:04]} e5 {[%emt 0:00:
01]} 15. d5 {[%emt 0:00:05]} Ng3 {[%emt 0:00:31]} 16. Rh3 {[%emt 0:00:01]} Nh5
17. Rb1 {[%emt 0:00:06]} Bc8 {[%emt 0:00:01]} 18. g4 {[%emt 0:00:04]} Nhf6 {
[%emt 0:00:04]} 19. g5 {[%emt 0:00:15]} hxg5 {[%emt 0:00:01]} 20. Bxg5 {
[%emt 0:00:01]} Qa5 {[%emt 0:00:07]} 21. Ne3 {[%emt 0:00:18]} Qxa4 {[%emt 0:00:
26]} 22. Nc4 {[%emt 0:00:05]} Bf8 {[%emt 0:00:01]} 23. Bxf6 {[%emt 0:00:08]}
Nxf6 {[%emt 0:00:04]} 24. Nb6 {[%emt 0:00:01]} Qa5 {[%emt 0:00:22]} 25. Nxa8 {
[%emt 0:00:02]} Bxh3 {[%emt 0:00:02]} 26. Rb8+ {[%emt 0:00:16]} Ke7 {[%emt 0:
00:01]} 27. Nxh3 {[%emt 0:00:02]} Bh6 {[%emt 0:00:02]} 28. Rb7+ {[%emt 0:00:41]
} Nd7 {[%emt 0:00:03]} 29. Qb2 {[%emt 0:00:13]} Rxa8 {[%emt 0:00:30]} 30. Rxd7+
{[%emt 0:00:03]} Kxd7 {[%emt 0:00:15]} 31. Qb7+ {[%emt 0:00:01]} Ke8 {[%emt 0:
00:07]} 32. Qxa8+ {[%emt 0:00:01]} Ke7 {[%emt 0:00:01]} 33. Qb7+ {[%emt 0:00:
04]} Kf8 {[%emt 0:00:00]} 34. Qb2 {[%emt 0:00:05]} Be3 {[%emt 0:00:06]} 35. Ke2
{[%emt 0:00:05]} Bh6 {[%emt 0:00:05]} 36. Ng5 {[%emt 0:00:02]} Kg7 {[%emt 0:00:
01]} 37. Kf2 {[%emt 0:00:08]} c4 {[%emt 0:00:01]} 38. Bf1 {[%emt 0:00:09]} Qc5+
{[%emt 0:00:00]} 39. Kg2 a5 {[%emt 0:00:02]} 40. Qa2 {[%emt 0:00:04]} Qe3 {
[%emt 0:00:05]} 41. Nh3 {[%emt 0:00:12]} Qxc3 {[%emt 0:00:02]} 42. Qxc4 {
[%emt 0:00:01]} Qd2+ {[%emt 0:00:02]} 43. Qe2 {[%emt 0:00:01]} Qd4 {[%emt 0:00:
01]} 44. Qa2 {[%emt 0:00:10]} Bd2 {[%emt 0:00:08]} 45. Qc4 {[%emt 0:00:07]} Qe3
{[%emt 0:00:03]} 46. Qd3 {[%emt 0:00:05]} Qe1 {[%emt 0:00:03]} 47. Qe2 {
[%emt 0:00:05]} Qc1 {[%emt 0:00:02]} 48. Nf2 {[%emt 0:00:01]} a4 {[%emt 0:00:
02]} 49. Qc4 {[%emt 0:00:03]} Qa1 {[%emt 0:00:04]} 50. Qc2 {[%emt 0:00:00]} Be3
{[%emt 0:00:02]} 51. Ng4 {[%emt 0:00:01]} Bd4 {[%emt 0:00:01]} 52. Nf2 {
[%emt 0:00:03]} a3 {[%emt 0:00:01]} 53. Bc4 {[%emt 0:00:01]} Qe1 {[%emt 0:00:
03]} 54. Qa2 {[%emt 0:00:04]} Qc1 {[%emt 0:00:02]} 55. Qe2 {[%emt 0:00:01]} Qc3
{[%emt 0:00:02]} 56. Kg3 {[%emt 0:00:02]} Qc1 {[%emt 0:00:00]} 57. Kg2 {
[%emt 0:00:02]} Qc3 {[%emt 0:00:01]} 58. Nd1 {[%emt 0:00:02]} Qc1 {[%emt 0:00:
01]} 59. Kg3 {[%emt 0:00:01]} Qf4+ {[%emt 0:00:01]} 60. Kg2 Qxh4 61. Ne3 {
[%emt 0:00:03]} Qg5+ {[%emt 0:00:03]} 62. Ng4 {[%emt 0:00:03]} Qc1 {[%emt 0:00:
01]} 63. Ba2 {[%emt 0:00:05]} Qg1+ {[%emt 0:00:01]} 64. Kh3 {[%emt 0:00:01]}
Qh1+ {[%emt 0:00:01]} 65. Nh2 {[%emt 0:00:00]} Qc1 {[%emt 0:00:02]} 66. Kg2 {
[%emt 0:00:03]} Qg1+ {[%emt 0:00:02]} 67. Kh3 {[%emt 0:00:01]} Qc1 {[%emt 0:00:
01]} 68. Nf1 {[%emt 0:00:01]} Qh6+ {[%emt 0:00:02]} 69. Kg2 {[%emt 0:00:00]}
Qg5+ {[%emt 0:00:00]} 70. Kh3 {[%emt 0:00:01]} Qh6+ {[%emt 0:00:01]} 71. Kg2 {
[%emt 0:00:01]} Qg5+ {[%emt 0:00:01]} 72. Ng3 {[%emt 0:00:01]} Qc1 {[%emt 0:00:
01]} 73. Kh3 {[%emt 0:00:02]} Qh6+ {[%emt 0:00:01]} 74. Kg2 Qc1 {[%emt 0:00:01]
} 75. Nh1 {[%emt 0:00:03]} Qg1+ {[%emt 0:00:01]} 76. Kh3 {[%emt 0:00:01]} Qxh1+
{[%emt 0:00:01]} 77. Kg3 {[%emt 0:00:01]} Qg1+ {[%emt 0:00:02]} 78. Kh3 {
[%emt 0:00:03]} Bf2 {[%emt 0:00:01]} 0-1

[Event "FIDE Women World Blitz 2021"]
[Site "Warsaw"]
[Date "2021.12.30"]
[Round "13.26"]
[White "Berend, Elvira"]
[Black "Fernandez, Maria Florencia"]
[Result "1-0"]
[ECO "E62"]
[WhiteElo "2328"]
[BlackElo "2184"]
[Annotator "NA"]
[PlyCount "83"]
[EventDate "2021.12.29"]
[EventType "swiss"]
[EventCountry "POL"]
[Tiebreak "Cut1 Buchholz"]
[SourceTitle "playchess.com"]
[Source "ChessBase"]
[SourceQuality "1"]
[TimeControl "180+2"]

1. d4 {[%emt 0:00:02]} Nf6 {[%emt 0:00:01]} 2. Nf3 {[%emt 0:00:01]} d6 {
[%emt 0:00:05]} 3. g3 {[%emt 0:00:05]} g6 {[%emt 0:00:01]} 4. Bg2 {[%emt 0:00:
01]} Bg7 {[%emt 0:00:01]} 5. O-O {[%emt 0:00:01]} O-O {[%emt 0:00:01]} 6. c4 {
[%emt 0:00:01]} Nc6 {[%emt 0:00:01]} 7. Nc3 {[%emt 0:00:03]} Bf5 {[%emt 0:00:
01]} 8. Nh4 {[%emt 0:00:27]} Bd7 {[%emt 0:00:04]} 9. d5 {[%emt 0:00:11]} Na5 {
[%emt 0:00:03]} 10. Qd3 {[%emt 0:00:04]} c5 {[%emt 0:00:04]} 11. e4 {[%emt 0:
00:10]} a6 {[%emt 0:00:23]} 12. Rb1 {[%emt 0:00:10]} Rb8 {[%emt 0:00:08]} 13.
Bd2 {[%emt 0:00:09]} b5 {[%emt 0:00:06]} 14. b3 {[%emt 0:00:04]} Ng4 {[%emt 0:
00:19]} 15. Nf3 {[%emt 0:00:04]} Qc7 {[%emt 0:00:09]} 16. h3 {[%emt 0:00:15]}
Ne5 {[%emt 0:00:02]} 17. Nxe5 {[%emt 0:00:01]} Bxe5 {[%emt 0:00:00]} 18. f4 {
[%emt 0:00:05]} Bd4+ {[%emt 0:00:02]} 19. Kh2 {[%emt 0:00:04]} Rb7 {[%emt 0:00:
22]} 20. Ne2 {[%emt 0:00:02]} Bg7 {[%emt 0:00:07]} 21. f5 {[%emt 0:00:07]} Rfb8
{[%emt 0:00:07]} 22. cxb5 {[%emt 0:00:08]} axb5 {[%emt 0:00:22]} 23. Qf3 {
[%emt 0:00:01]} Be8 {[%emt 0:00:04]} 24. Bc3 {[%emt 0:00:08]} Bxc3 {[%emt 0:00:
16]} 25. Qxc3 {[%emt 0:00:14]} b4 {[%emt 0:00:07]} 26. Qe3 {[%emt 0:00:05]} c4
{[%emt 0:00:05]} 27. Rbc1 {[%emt 0:00:23]} Qb6 {[%emt 0:00:16]} 28. Qh6 {
[%emt 0:00:03]} cxb3 {[%emt 0:00:08]} 29. axb3 {[%emt 0:00:01]} Nxb3 {[%emt 0:
00:01]} 30. Rcd1 {[%emt 0:00:02]} Rc8 {[%emt 0:00:12]} 31. Nf4 {[%emt 0:00:01]}
Qe3 {[%emt 0:00:20]} 32. Rde1 {[%emt 0:00:05]} Qd2 {[%emt 0:00:01]} 33. Re2 {
[%emt 0:00:05]} Qd4 {[%emt 0:00:01]} 34. e5 {[%emt 0:00:06]} dxe5 {[%emt 0:00:
04]} 35. fxg6 {[%emt 0:00:01]} hxg6 {[%emt 0:00:05]} 36. Nxg6 {[%emt 0:00:01]}
e4 {[%emt 0:00:03]} 37. Qf8+ {[%emt 0:00:10]} Kh7 38. Rxe4 {[%emt 0:00:11]} Qf6
{[%emt 0:00:05]} 39. Rxf6 {[%emt 0:00:03]} exf6 {[%emt 0:00:02]} 40. Rh4+ {
[%emt 0:00:01]} Kxg6 {[%emt 0:00:00]} 41. Be4+ {[%emt 0:00:03]} f5 {[%emt 0:00:
00]} 42. Qh6# {[%emt 0:00:02]} 1-0

[Event "FIDE Women World Blitz 2021"]
[Site "Warsaw"]
[Date "2021.12.30"]
[Round "13.27"]
[White "Cyfka, Karina"]
[Black "Pavlidou, Ekaterini"]
[Result "0-1"]
[ECO "E15"]
[WhiteElo "2416"]
[BlackElo "2177"]
[Annotator "NA"]
[PlyCount "62"]
[EventDate "2021.12.29"]
[EventType "swiss"]
[EventCountry "POL"]
[Tiebreak "Cut1 Buchholz"]
[SourceTitle "playchess.com"]
[Source "ChessBase"]
[SourceQuality "1"]
[TimeControl "180+2"]

1. d4 {[%emt 0:00:02]} Nf6 {[%emt 0:00:01]} 2. c4 {[%emt 0:00:01]} e6 {[%emt 0:
00:01]} 3. Nf3 {[%emt 0:00:02]} b6 {[%emt 0:00:00]} 4. g3 {[%emt 0:00:01]} Ba6
{[%emt 0:00:05]} 5. b3 {[%emt 0:00:02]} Bb4+ {[%emt 0:00:05]} 6. Bd2 {[%emt 0:
00:02]} Be7 {[%emt 0:00:01]} 7. Bg2 {[%emt 0:00:02]} d5 {[%emt 0:00:02]} 8. O-O
{[%emt 0:00:05]} c6 {[%emt 0:00:02]} 9. Qc2 {[%emt 0:00:13]} O-O {[%emt 0:00:
03]} 10. Bf4 {[%emt 0:00:09]} Nbd7 {[%emt 0:00:26]} 11. Nbd2 {[%emt 0:00:01]}
Rc8 {[%emt 0:00:06]} 12. Qb2 {[%emt 0:00:11]} Ne4 {[%emt 0:00:09]} 13. Nxe4 {
[%emt 0:00:09]} dxe4 {[%emt 0:00:02]} 14. Nd2 {[%emt 0:00:05]} f5 {[%emt 0:00:
12]} 15. Rad1 {[%emt 0:00:30]} Bf6 {[%emt 0:00:14]} 16. Be5 {[%emt 0:00:26]} c5
{[%emt 0:00:26]} 17. Bxf6 Qxf6 {[%emt 0:00:01]} 18. Qa3 {[%emt 0:00:20]} Nb8 {
[%emt 0:00:11]} 19. dxc5 {[%emt 0:00:10]} Rxc5 {[%emt 0:00:10]} 20. b4 {
[%emt 0:00:09]} Rc7 {[%emt 0:00:01]} 21. b5 {[%emt 0:00:30]} Bc8 {[%emt 0:00:
01]} 22. Rc1 {[%emt 0:00:07]} e5 {[%emt 0:00:08]} 23. Nb3 {[%emt 0:00:07]} Be6
{[%emt 0:00:05]} 24. Qb4 {[%emt 0:00:08]} Nd7 {[%emt 0:00:22]} 25. Rfd1 {
[%emt 0:00:01]} Rfc8 {[%emt 0:00:06]} 26. Nd2 {[%emt 0:00:03]} Nc5 {[%emt 0:00:
11]} 27. f3 {[%emt 0:00:04]} e3 {[%emt 0:00:02]} 28. Nb3 {[%emt 0:00:06]} f4 {
[%emt 0:00:03]} 29. Rd6 {[%emt 0:00:04]} Qe7 {[%emt 0:00:09]} 30. Rcd1 {
[%emt 0:00:01]} Nb7 {[%emt 0:00:10]} 31. R6d3 {[%emt 0:00:06]} Qxb4 {[%emt 0:
00:02]} 0-1

[Event "FIDE Women World Blitz 2021"]
[Site "Warsaw"]
[Date "2021.12.30"]
[Round "13.28"]
[White "Gaponenko, Inna"]
[Black "Doluhanova, Evgeniya"]
[Result "1-0"]
[ECO "C62"]
[WhiteElo "2339"]
[BlackElo "2237"]
[Annotator "NA"]
[PlyCount "73"]
[EventDate "2021.12.29"]
[EventType "swiss"]
[EventCountry "POL"]
[Tiebreak "Cut1 Buchholz"]
[SourceTitle "playchess.com"]
[Source "ChessBase"]
[SourceQuality "1"]
[TimeControl "180+2"]

1. e4 {[%emt 0:00:01]} e5 {[%emt 0:00:02]} 2. Nf3 {[%emt 0:00:01]} Nc6 {
[%emt 0:00:01]} 3. d4 {[%emt 0:00:00]} d6 {[%emt 0:00:11]} 4. Bb5 {[%emt 0:00:
09]} Bd7 {[%emt 0:00:16]} 5. Nc3 {[%emt 0:00:36]} exd4 {[%emt 0:00:27]} 6. Nxd4
{[%emt 0:00:01]} Nxd4 {[%emt 0:00:09]} 7. Bxd7+ {[%emt 0:00:03]} Qxd7 {[%emt 0:
00:02]} 8. Qxd4 {[%emt 0:00:02]} Nf6 {[%emt 0:00:05]} 9. Bg5 {[%emt 0:00:02]}
Be7 {[%emt 0:00:02]} 10. O-O-O {[%emt 0:00:03]} O-O {[%emt 0:00:22]} 11. e5 {
[%emt 0:00:10]} Ne8 {[%emt 0:00:07]} 12. Bxe7 {[%emt 0:00:36]} Qxe7 {[%emt 0:
00:03]} 13. f4 {[%emt 0:00:03]} dxe5 {[%emt 0:00:09]} 14. fxe5 {[%emt 0:00:00]}
c6 {[%emt 0:00:19]} 15. Rd3 {[%emt 0:00:49]} Nc7 {[%emt 0:00:02]} 16. Rg3 {
[%emt 0:00:01]} Rfe8 {[%emt 0:00:21]} 17. Re1 {[%emt 0:00:06]} f6 {[%emt 0:00:
23]} 18. Rge3 {[%emt 0:00:26]} fxe5 {[%emt 0:00:12]} 19. Rxe5 {[%emt 0:00:01]}
Qf7 {[%emt 0:00:02]} 20. Rxe8+ {[%emt 0:00:05]} Rxe8 {[%emt 0:00:06]} 21. Rxe8+
{[%emt 0:00:02]} Nxe8 {[%emt 0:00:01]} 22. b3 {[%emt 0:00:06]} b6 {[%emt 0:00:
02]} 23. Kb2 {[%emt 0:00:03]} h6 {[%emt 0:00:06]} 24. Qd8 {[%emt 0:00:06]} Kh7
{[%emt 0:00:03]} 25. a4 {[%emt 0:00:00]} Nf6 {[%emt 0:00:06]} 26. Qd6 {[%emt 0:
00:08]} c5 {[%emt 0:00:04]} 27. h3 {[%emt 0:00:01]} Qd7 {[%emt 0:00:04]} 28.
Qe5 {[%emt 0:00:03]} Qd8 {[%emt 0:00:05]} 29. g4 {[%emt 0:00:01]} Qd4 {[%emt 0:
00:02]} 30. Qxd4 {[%emt 0:00:02]} cxd4 {[%emt 0:00:01]} 31. Nb5 {[%emt 0:00:01]
} Ne4 {[%emt 0:00:02]} 32. Nxa7 {[%emt 0:00:04]} Nf2 {[%emt 0:00:01]} 33. Nc8 {
[%emt 0:00:01]} Nxh3 {[%emt 0:00:02]} 34. Nxb6 {[%emt 0:00:01]} g5 {[%emt 0:00:
05]} 35. a5 {[%emt 0:00:01]} Nf4 {[%emt 0:00:02]} 36. a6 {[%emt 0:00:04]} Ne6 {
[%emt 0:00:01]} 37. Nd5 {[%emt 0:00:03]} 1-0